Cogmind - Beta 11 X10 @@@ ROGUE MODE // 2022.03.11 @ 10:51:37 Player: Nalzok Result: Destroyed by 7F-LC2(z) with Zionite Laser-S Performance ------------- Evolutions (4) 2000 Regions Visited (14) 2800 Robots Destroyed (67) 335 Value Destroyed (2213) 2213 Prototype IDs (39) 780 Alien Tech Used (0) 0 Bonus (1942) 1942 TOTAL SCORE: 10070 Bonus ------- Follower Combat Kills 74 Aligned with FarCom 300 Met Data Miner 300 Met Imprinter 300 Destroyed Z-Imprinter 1000 Friendly Fire -32 Cogmind --------- Core Integrity 0/850 Matter 117/300 Energy 25/100 System Corruption 0% Temperature Critical (854) Movement Rolling (100) Location -6/Deep Caves Parts ------- > --- POWER (2) -------- (None) > --- PROPULSION (4) --- Armored Huge Wheel > --- UTILITY (6) ------ Advanced Power Amplifier 0b10 Decoder Chip [Generic] Makeshift Hacking Suite > --- WEAPON (3) ------- CR-A16's Pointy Stick > --- INVENTORY (5) ---- Large Storage Unit Gatling Laser Thermic Laser Heavy Flak Cannon Longsword +1 Peak State ------------ > --- POWER ------------ Improved Deuterium Engine Micro Nuclear Core > --- PROPULSION ------- Light Treads Light Treads Improved Medium Treads Carbon-fiber Leg > --- UTILITY ---------- Advanced Power Amplifier Improved Cooling System Large Storage Unit 0b10 Decoder Chip [Looter] Medium Reactive Plating Insulated Plating > --- WEAPON ----------- Heavy Laser Heavy Laser Longsword +1 > --- INVENTORY -------- Fusion Compressor Armored Huge Wheel Biomechanical Wings Advanced Power Amplifier Large Storage Unit Heavy Laser Gatling Laser Thermic Laser Heavy Plasma Cannon Gauss Rifle Coil Gun Heavy Rocket Launcher Heavy Rocket Launcher Remote Datajack [Rating: 64] Favorites ----------- Power Micro Nuclear Core Engine Improved Deuterium Engine Power Core Micro Nuclear Core Reactor Zionite Light DM Reactor Propulsion Light Treads Treads Light Treads Leg Carbon-fiber Leg Wheel Armored Huge Wheel Hover Unit Hover Unit Flight Unit Biomechanical Wings Utility Improved Heat Sink Device Improved Heat Sink Storage Large Storage Unit Processor 0b10 Decoder Chip [Looter] Hackware Makeshift Hacking Suite Protection Medium Reactive Plating Weapon Heavy Laser Energy Gun Heavy Laser Energy Cannon Heavy Particle Cannon Ballistic Gun Light Assault Rifle Ballistic Cannon Magnetic Acceleration Cannon Launcher Heavy Rocket Launcher Slashing Weapon Longsword +1 Piercing Weapon CR-A16's Pointy Stick Build | -11 -10 -10 -10 -9 -8 -7 -7 -7 -7 -6 -6 -6 -6 -6 ------- Run | Scr Mat Min Exi Min Mat Fac Low Low Dat Pro Fac Low Zio Dee Slots Evolved 8 | . . . . . 4 2 . . . . 2 . . . Power 1 | . . . . . . 1 . . . . . . . . Propulsion 2 | . . . . . 2 . . . . . . . . . Utility 4 | . . . . . 2 1 . . . . 1 . . . Weapon 1 | . . . . . . . . . . . 1 . . . Parts Attached 120 | . 3 . . . 17 27 10 7 . 6 29 . 5 16 Power 12 | . . . . . 1 4 1 . . . 4 . . 2 Engine 4 | . . . . . 1 . 1 . . . 1 . . 1 Core 7 | . . . . . . 4 . . . . 3 . . . Reactor 1 | . . . . . . . . . . . . . . 1 Propulsion 22 | . 1 . . . 4 6 . 4 . . 4 . 1 2 Treads 4 | . . . . . . . . 2 . . 1 . 1 . Leg 13 | . 1 . . . 4 4 . 2 . . 2 . . . Wheel 3 | . . . . . . 2 . . . . . . . 1 Hover 1 | . . . . . . . . . . . . . . 1 Flight 1 | . . . . . . . . . . . 1 . . . Utility 39 | . 1 . . . 4 6 4 1 . 5 10 . 2 6 Device 20 | . 1 . . . 1 4 4 1 . 1 6 . 1 1 Storage 5 | . . . . . 1 1 . . . . 2 . 1 . Processor 4 | . . . . . . 1 . . . 1 1 . . 1 Hackware 1 | . . . . . . . . . . . . . . 1 Protection 9 | . . . . . 2 . . . . 3 1 . . 3 Artifact . | . . . . . . . . . . . . . . . Weapon 47 | . 1 . . . 8 11 5 2 . 1 11 . 2 6 Energy Gun 15 | . . . . . . 5 2 . . . 5 . 1 2 Energy Cannon 4 | . . . . . . 2 1 . . . 1 . . . Ballistic Gun 14 | . 1 . . . 6 3 . 2 . 1 1 . . . Ballistic Cannon 1 | . . . . . . . . . . . . . . 1 Launcher 7 | . . . . . 2 . 1 . . . 2 . . 2 Special Weapon . | . . . . . . . . . . . . . . . Impact Weapon . | . . . . . . . . . . . . . . . Slashing Weapon 5 | . . . . . . 1 1 . . . 2 . 1 . Piercing Weapon 1 | . . . . . . . . . . . . . . 1 Special Melee Weapon . | . . . . . . . . . . . . . . . Unidentified Prototypes 5 | . . . . . . 1 . . . . 1 . . 3 Parts Lost 47 | . . . . . 14 3 2 8 . . 3 . . 17 Power 7 | . . . . . 1 1 1 1 . . . . . 3 Propulsion 12 | . . . . . 5 . . 2 . . 1 . . 4 Utility 14 | . . . . . 1 1 1 3 . . 2 . . 6 Weapon 14 | . . . . . 7 1 . 2 . . . . . 4 Highest Loss Streak 12 | . . . . . 12 3 1 4 . . 2 . . 10 To Critical Strikes . | . . . . . . . . . . . . . . . Average Slot Usage (%) 91 | . 98 100 100 100 89 76 83 76 69 81 97 100 100 81 Engine 5 | . 14 14 14 14 7 . 6 4 . . 4 6 6 4 Core 5 | . . . . . . 10 7 7 7 7 7 6 6 5 Treads 11 | . . . . . . . . 5 15 15 18 13 17 15 Leg 10 | . 28 28 28 28 30 7 . 3 7 7 7 13 8 2 Wheel 2 | . . . . . . 8 15 9 . . . . . . Device 17 | . 13 14 14 14 16 19 30 23 15 10 13 20 19 13 Storage 7 | . 14 14 14 14 14 7 7 7 7 7 6 6 6 6 Processor 1 | . . . . . . 5 . . . 1 3 . . . Protection 8 | . . . . . 2 . . . . 15 14 13 13 11 Energy Gun 11 | . 4 . . . . 2 7 5 . . 17 20 19 17 Ballistic Gun 5 | . 23 28 28 28 17 9 . 3 15 15 . . . . Naked Turns . | . . . . . . . . . . . . . . . Heaviest Build 84 | 13 14 13 13 13 37 45 54 54 35 61 84 80 82 79 Greatest Support 73 | 20 20 20 20 20 40 56 56 56 40 40 70 50 73 73 Greatest Overweight (x) 7 | . . . . . 7 1 . 1 . 1 1 1 1 1 Average Overweight (x) . | . . . . . . . . . . . . 1 1 . Largest Inventory Capacity 15 | 8 8 8 8 8 15 15 15 15 15 15 15 15 15 15 Average Capacity 14 | 8 8 8 8 8 14 15 15 15 15 15 15 15 15 15 Most Carried 15 | 5 8 8 8 8 15 15 15 15 12 15 15 15 15 15 Average Carried 13 | 5 6 8 7 8 13 11 14 14 12 14 14 15 14 14 Final Capacity 15 | 8 8 8 8 8 15 15 15 15 15 15 15 15 15 5 Final Carried 15 | 4 8 8 8 8 9 15 15 12 12 15 15 15 15 5 Class Distribution -------------------- 41% | Scavenger-Tank 26% | Mutant 19% | Scavenger-Mutant 6% | Skirmisher 3% | Derelict-Tank Dominant Class ---------------- Mutant | -10/Materials Mutant | -10/Mines Mutant | -10/Exiles Mutant | -9/Mines Skirmisher | -8/Materials Mutant | -7/Factory Mutant | -7/Lower Caves Mutant | -7/Lower Caves Scavenger-Mutant | -7/Data Miner Scavenger-Mutant | -6/Proximity Caves Scavenger-Tank | -6/Factory Scavenger-Tank | -6/Lower Caves Scavenger-Tank | -6/Zion Scavenger-Tank | -6/Deep Caves Resources | -11 -10 -10 -10 -9 -8 -7 -7 -7 -7 -6 -6 -6 -6 -6 ----------- Run | Scr Mat Min Exi Min Mat Fac Low Low Dat Pro Fac Low Zio Dee Matter Collected 2149 | 200 42 18 . . 159 495 271 158 . 165 484 . 61 96 Remotely . | . . . . . . . . . . . . . . . Salvage Created 2439 | . 89 48 . . 304 667 181 408 . 43 442 . . 257 Parts 126 | . 5 4 . . 23 26 8 14 . 2 27 . . 17 Haulers Intercepted . | . . . . . . . . . . . . . . . Recyclers Shooed 6 | . . . . . . 3 . . . . 3 . . . Parts Field Recycled . | . . . . . . . . . . . . . . . Retrieved Matter . | . . . . . . . . . . . . . . . Parts Self-Destructed 19 | . . . . . . . 7 11 . 1 . . . . Prevented . | . . . . . . . . . . . . . . . Kills | -11 -10 -10 -10 -9 -8 -7 -7 -7 -7 -6 -6 -6 -6 -6 ------- Run | Scr Mat Min Exi Min Mat Fac Low Low Dat Pro Fac Low Zio Dee Combat Hostiles Destroyed 53 | . 3 3 . . 13 8 6 10 . 1 4 . . 5 Guns 39 | . 3 3 . . 10 8 1 8 . 1 3 . . 2 Cannons 3 | . . . . . . . 1 2 . . . . . . AOE 10 | . . . . . 3 . 3 . . . 1 . . 3 Classes Destroyed 14 | . 2 . . . 4 2 . 1 . . 4 . . 1 Worker 4 | . . . . . . . . . . . 4 . . . Builder 3 | . . . . . . . . . . . 3 . . . Tunneler 1 | . . . . . . . . . . . 1 . . . Recycler 4 | . . . . . . 3 . . . . 1 . . . Operator 1 | . . . . . 1 . . . . . . . . . Watcher 1 | . . . . . . . . . . . 1 . . . Swarmer 16 | . 1 3 . . 4 . 3 5 . . . . . . Grunt 20 | . 2 . . . 5 6 2 3 . . 2 . . . Brawler 3 | . . . . . 1 . 1 1 . . . . . . Sentry 1 | . . . . . . . . 1 . . . . . . Specialist 2 | . . . . . 2 . . . . . . . . . Programmer 5 | . . . . . . 2 . . . 1 2 . . . Heavy 1 | . . . . . 1 . . . . . . . . . Z-Technician 5 | . . . . . . . . . . . . . . 5 Z-Light 4 | . . . . . . . . . . . . . . 4 Best Kill Streak 8 | . 2 3 . . 5 5 3 4 . 1 8 . . 4 Combat Bots Only 5 | . 2 3 . . 5 2 3 4 . 1 2 . . 2 Max Kills in Single Turn 5 | . 1 2 . . 2 2 3 1 . 1 5 . . 1 Gunslinging 1 | . . 1 . . . 1 . . . . . . . . Exploded 3 | . . . . . 2 . 3 . . . 1 . . 1 Melee . | . . . . . . . . . . . . . . . Uniques/NPCs Destroyed 1 | . . . . . . . . . . . . . . 1 Z-Imprinter (-6/Deep Caves) Combat | -11 -10 -10 -10 -9 -8 -7 -7 -7 -7 -6 -6 -6 -6 -6 -------- Run | Scr Mat Min Exi Min Mat Fac Low Low Dat Pro Fac Low Zio Dee Damage Taken 7666 | . 82 26 . . 1974 987 283 679 . 155 562 . . 2918 Core 1674 | . 18 10 . . 457 149 16 137 . 30 130 . . 727 Absorbed by Shields 175 | . . . . . . 82 . 93 . . . . . . Redirected to Shielding 21 | . . . . . . . . . . 21 . . . . Core Remaining (%) 64 | 100 . . . 88 16 . . . . 52 . . . . Volleys Fired 251 | . 10 5 . . 61 68 13 27 . 4 18 . 2 43 Largest 3 | . 2 2 . . 2 2 2 2 . 2 3 . 3 3 Hottest 228 | . 40 40 . . 50 137 137 144 . 58 228 . 218 218 Shots Fired 504 | . 20 10 . . 108 136 28 46 . 9 47 2 5 93 Gun 431 | . 20 10 . . 99 121 12 28 . 9 44 2 5 81 Cannon 54 | . . . . . . 15 14 18 . . 1 . . 6 Launcher 19 | . . . . . 9 . 2 . . . 2 . . 6 Special . | . . . . . . . . . . . . . . . Kinetic 264 | . 20 10 . . 99 106 . 9 . 9 5 . . 6 Thermal 221 | . . . . . . 30 26 37 . . 40 2 5 81 Explosive 19 | . . . . . 9 . 2 . . . 2 . . 6 Electromagnetic . | . . . . . . . . . . . . . . . Robot Hit Streak 13 | . 4 4 . . 13 11 10 7 . 8 7 . . 7 Robot Miss Streak 11 | . 6 3 . . 3 4 2 2 . 1 3 . . 11 Penetration Max 1 | . . . . . . . . . . . 1 . . . Secondary Targets 6 | . . 1 . . 3 2 . . . . . . . . Max Gunslinging Chain 1 | . . 1 . . 1 1 . . . . . . . . Shots Hit Robots 302 | . 9 7 . . 73 86 19 27 . 7 32 . . 42 Core Hits 157 | . 6 4 . . 41 27 8 15 . 2 23 . . 31 Critical Kills 2 | . . . . . . 2 . . . . . . . . Critical Parts Destroyed . | . . . . . . . . . . . . . . . Critical Strikes 7 | . . . . . . 2 2 . . . . . . 3 Burn 5 | . . . . . . . 2 . . . . . . 3 Destroy 2 | . . . . . . 2 . . . . . . . . Melee Attacks 60 | . . . . . . 1 1 . . . 29 . 29 . Impact . | . . . . . . . . . . . . . . . Slashing 60 | . . . . . . 1 1 . . . 29 . 29 . Piercing . | . . . . . . . . . . . . . . . Sneak Attacks . | . . . . . . . . . . . . . . . Combat Hostiles . | . . . . . . . . . . . . . . . Follow-up Attacks . | . . . . . . . . . . . . . . . Damage Inflicted 6674 | . 71 56 . . 1322 1123 764 601 . 164 1194 . . 1379 Guns 3988 | . 71 56 . . 547 966 204 426 . 164 804 . . 750 Cannons 577 | . . . . . . 157 181 175 . . 33 . . 31 Explosions 2108 | . . . . . 775 . 378 . . . 357 . . 598 Melee . | . . . . . . . . . . . . . . . Ramming 1 | . . . . . . . 1 . . . . . . . Kinetic 1959 | . 71 56 . . 547 793 . 118 . 164 179 . . 31 Thermal 2606 | . . . . . . 330 385 483 . . 658 . . 750 Explosive 2108 | . . . . . 775 . 378 . . . 357 . . 598 Electromagnetic . | . . . . . . . . . . . . . . . Impact . | . . . . . . . . . . . . . . . Slashing . | . . . . . . . . . . . . . . . Piercing . | . . . . . . . . . . . . . . . Highest Corruption 12 | . . . . . . 3 3 11 11 12 5 5 5 . Average Corruption 6 | . . . . . . 1 3 6 11 11 5 5 5 . Corruption Purged . | . . . . . . . . . . . . . . . Corruption Blocked . | . . . . . . . . . . . . . . . Effects 94 | . . . . . . 4 15 20 5 27 13 7 3 . Message Errors 20 | . . . . . . 1 2 4 . 8 3 2 . . Matter Fused 24 | . . . . . . 1 3 6 3 7 2 1 1 . Heat Flow Errors 11 | . . . . . . . . 1 . 4 5 1 . . Energy Discharges 9 | . . . . . . 1 2 2 1 1 . . 2 . Data Loss (minor) 16 | . . . . . . 1 4 3 1 5 2 . . . Data Loss (major) 5 | . . . . . . . 2 1 . 1 . 1 . . Misfires 8 | . . . . . . . 2 2 . 1 1 2 . . Weapon Failures 1 | . . . . . . . . 1 . . . . . . Overload Shots . | . . . . . . . . . . . . . . . Overflow Damage 15 | . . . . . . . . . . . . . . 15 Projectiles . | . . . . . . . . . . . . . . . Explosions 15 | . . . . . . . . . . . . . . 15 Melee . | . . . . . . . . . . . . . . . Knockbacks 1 | . . . . . . . . . . . . . . 1 Impact . | . . . . . . . . . . . . . . . Kinetic 1 | . . . . . . . . . . . . . . 1 Secondary . | . . . . . . . . . . . . . . . Self-Inflicted Damage 63 | . . . . . . . . . . . . . . 63 Shots 1 | . . . . . . . . . . . . . . 1 Rammed 1 | . . . . . . . 1 . . . . . . . Targets Rammed 1 | . . . . . . . 1 . . . . . . . Kicked . | . . . . . . . . . . . . . . . Crushed . | . . . . . . . . . . . . . . . Highest Temperature 976 | . 12 . . . 39 442 363 90 . 183 434 29 3 976 Average Temperature 134 | . 7 . . . 14 97 167 24 . 73 98 29 2 277 Received Heat Transfer 2251 | . 30 . . . 558 547 81 108 . 63 72 . . 792 Effects 26 | . . . . . . 1 5 . . . 2 . . 18 Shutdowns 6 | . . . . . . . 1 . . . 2 . . 3 Energy Bleed 2 | . . . . . . . . . . . . . . 2 Interference 4 | . . . . . . . 3 . . . . . . 1 Matter Decay 3 | . . . . . . 1 . . . . . . . 2 Short Circuit 2 | . . . . . . . . . . . . . . 2 Damage (minor) 4 | . . . . . . . 1 . . . . . . 3 Damage (major) 4 | . . . . . . . . . . . . . . 4 Damage (core) 1 | . . . . . . . . . . . . . . 1 Siege Activations . | . . . . . . . . . . . . . . . Robots Corrupted . | . . . . . . . . . . . . . . . Combat Hostiles . | . . . . . . . . . . . . . . . Parts Fried . | . . . . . . . . . . . . . . . Impact Corruptions . | . . . . . . . . . . . . . . . Robots Melted 1 | . . . . . . . 1 . . . . . . . Combat Hostiles 1 | . . . . . . . 1 . . . . . . . Parts Melted 16 | . . . . . . 2 4 2 . . 3 . . 5 Heat Transferred 4512 | . . . . . . 555 814 851 . . 1161 . . 1131 Parts Sabotaged . | . . . . . . . . . . . . . . . Parts Stolen . | . . . . . . . . . . . . . . . Parts Stripped . | . . . . . . . . . . . . . . . Power Chain Reactions . | . . . . . . . . . . . . . . . Missiles Intercepted . | . . . . . . . . . . . . . . . Alert | -11 -10 -10 -10 -9 -8 -7 -7 -7 -7 -6 -6 -6 -6 -6 ------- Run | Scr Mat Min Exi Min Mat Fac Low Low Dat Pro Fac Low Zio Dee Peak Influence 221 | . 106 110 . . 186 193 . . . . 221 . . . Initial 40 | . . 40 . . . 22 . . . . . . . . Average 52 | . 43 99 . . 49 64 . . . . 47 . . . Maximum Alert Level 1 | . . . . . . . . . . . 1 . . . Low Security (%) 97 | 100 100 100 . 100 100 100 . . . . 94 . . . Level 1 2 | . . . . . . . . . . . 5 . . . Level 2 . | . . . . . . . . . . . . . . . Level 3 . | . . . . . . . . . . . . . . . Level 4 . | . . . . . . . . . . . . . . . Level 5 . | . . . . . . . . . . . . . . . High Security . | . . . . . . . . . . . . . . . Max Security . | . . . . . . . . . . . . . . . Squads Dispatched 16 | . 2 . . . 5 5 . . . . 4 . . . Investigation 3 | . . . . . . 2 . . . . 1 . . . Extermination 3 | . . . . . . 2 . . . . 1 . . . Reinforcement 10 | . 2 . . . 5 1 . . . . 2 . . . Assault . | . . . . . . . . . . . . . . . Garrison . | . . . . . . . . . . . . . . . Intercept . | . . . . . . . . . . . . . . . Construction Impeded 2 | . . . . . . . . . . . 2 . . . Haulers Reinforced 1 | . . . . . . 1 . . . . . . . . Active Scanning Responses . | . . . . . . . . . . . . . . . Cargo Convoy Interrupts . | . . . . . . . . . . . . . . . Stealth | -11 -10 -10 -10 -9 -8 -7 -7 -7 -7 -6 -6 -6 -6 -6 --------- Run | Scr Mat Min Exi Min Mat Fac Low Low Dat Pro Fac Low Zio Dee Distress Signals 3 | . 1 . . . . 2 . . . . . . . . Communications Jammed . | . . . . . . . . . . . . . . . Distress Signals . | . . . . . . . . . . . . . . . Times Spotted 83 | . 7 3 . . 19 17 7 15 . 2 6 . . 7 Peak Tracking Total 5 | . 4 3 . . 5 5 3 5 . 1 3 . . 5 Tactical Retreats 2 | . . . . . . . . 2 . . . . . . Traps | -11 -10 -10 -10 -9 -8 -7 -7 -7 -7 -6 -6 -6 -6 -6 ------- Run | Scr Mat Min Exi Min Mat Fac Low Low Dat Pro Fac Low Zio Dee Traps Triggered 2 | . . . . . . 1 . . . . 1 . . . Indirectly . | . . . . . . . . . . . . . . . Trap Hack Attempts . | . . . . . . . . . . . . . . . Triggered . | . . . . . . . . . . . . . . . Disarmed . | . . . . . . . . . . . . . . . Reprogrammed . | . . . . . . . . . . . . . . . Reused . | . . . . . . . . . . . . . . . Traps Extracted . | . . . . . . . . . . . . . . . Installed . | . . . . . . . . . . . . . . . Triggered 1 | . . . . . . . . . . 1 . . . . Exploded 1 | . . . 1 . . . . . . . . . . . Machines | -11 -10 -10 -10 -9 -8 -7 -7 -7 -7 -6 -6 -6 -6 -6 ---------- Run | Scr Mat Min Exi Min Mat Fac Low Low Dat Pro Fac Low Zio Dee Machines Disabled 4 | . . . . . . . . . . . 3 . . 1 Max in Single Turn 1 | . . . . . . . . . . . 1 . . 1 Machines Sabotaged . | . . . . . . . . . . . . . . . Garrisons Compromised . | . . . . . . . . . . . . . . . Overloaded Fab Kills . | . . . . . . . . . . . . . . . Hacking | -11 -10 -10 -10 -9 -8 -7 -7 -7 -7 -6 -6 -6 -6 -6 --------- Run | Scr Mat Min Exi Min Mat Fac Low Low Dat Pro Fac Low Zio Dee Machines Accessed 18 | . 1 . 2 . 2 3 . 2 4 . 4 . . . Terminals 8 | . 1 . . . 2 2 . . . . 3 . . . Fabricators 1 | . . . . . . . . . . . 1 . . . Repair Stations 1 | . . . . . . 1 . . . . . . . . Recycling Units . | . . . . . . . . . . . . . . . Scanalyzers . | . . . . . . . . . . . . . . . Garrison Access . | . . . . . . . . . . . . . . . Total Hacks 70 | . 1 . 5 . 4 6 . 10 30 . 14 . . . Successful 54 | . 1 . 5 . . . . 10 30 . 8 . . . Failed 16 | . . . . . 4 6 . . . . 6 . . . Catastrophic 4 | . . . . . . 2 . . . . 2 . . . Database Lockouts . | . . . . . . . . . . . . . . . Manual 20 | . . . 1 . 3 4 . . . . 10 . 2 . Terminals 20 | . 1 . . . 4 4 . . . . 11 . . . Fabricators 3 | . . . . . . . . . . . 3 . . . Repair Stations 2 | . . . . . . 2 . . . . . . . . Recycling Units . | . . . . . . . . . . . . . . . Scanalyzers . | . . . . . . . . . . . . . . . Garrison Access . | . . . . . . . . . . . . . . . Terminal Hacks 47 | . 1 . 5 . . . . 10 30 . 1 . . . Record 24 | . . . 4 . . . . 9 11 . . . . . Part Schematic 11 | . . . . . . . . . 11 . . . . . Robot Schematic 5 | . . . . . . . . . 5 . . . . . Prototype ID Bank 3 | . . . . . . . . . 3 . . . . . Open Door 1 | . . . . . . . . 1 . . . . . . Branch Access Points 1 | . 1 . . . . . . . . . . . . . Unreport Threat 1 | . . . . . . . . . . . 1 . . . EX-Prototype ID Bank 1 | . . . 1 . . . . . . . . . . . Fabricator Hacks 2 | . . . . . . . . . . . 2 . . . Load Schematic 1 | . . . . . . . . . . . 1 . . . Build 1 | . . . . . . . . . . . 1 . . . Repair Station Hacks . | . . . . . . . . . . . . . . . Recycling Unit Hacks . | . . . . . . . . . . . . . . . Scanalyzer . | . . . . . . . . . . . . . . . Garrison Access Hacks . | . . . . . . . . . . . . . . . Unauthorized Hacks 5 | . . . . . . . . . . . 5 . . . Terminals 5 | . . . . . . . . . . . 5 . . . Assimilate 1 | . . . . . . . . . . . 1 . . . Botnet 2 | . . . . . . . . . . . 2 . . . Disrupt 1 | . . . . . . . . . . . 1 . . . Operators 1 | . . . . . . . . . . . 1 . . . Fabricators . | . . . . . . . . . . . . . . . Repair Stations . | . . . . . . . . . . . . . . . Recycling Units . | . . . . . . . . . . . . . . . Scanalyzers . | . . . . . . . . . . . . . . . Garrison Access . | . . . . . . . . . . . . . . . Data Cores Recovered . | . . . . . . . . . . . . . . . Used . | . . . . . . . . . . . . . . . Hacking Detections 8 | . . . . . 2 3 . . . . 3 . . . Full Trace Events 3 | . . . . . . 2 . . . . 1 . . . Feedback Events . | . . . . . . . . . . . . . . . Feedback Blocked . | . . . . . . . . . . . . . . . Robot Schematics Acquired 5 | . . . . . . . . . 5 . . . . . Robots Built . | . . . . . . . . . . . . . . . Authchips . | . . . . . . . . . . . . . . . Time . | . . . . . . . . . . . . . . . Total Robot Build Rating . | . . . . . . . . . . . . . . . Part Schematics Acquired 11 | . . . . . . . . . 11 . . . . . Parts Built 1 | . . . . . . . . . . . 1 . . . Authchips . | . . . . . . . . . . . . . . . Time 76 | . . . . . . . . . . . 76 . . . Total Part Build Rating 5 | . . . . . . . . . . . 5 . . . Parts Repaired . | . . . . . . . . . . . . . . . Time . | . . . . . . . . . . . . . . . Parts Recycled . | . . . . . . . . . . . . . . . Recycled Matter . | . . . . . . . . . . . . . . . Retrieved Matter . | . . . . . . . . . . . . . . . Retrieved Components . | . . . . . . . . . . . . . . . Parts Scanalyzed . | . . . . . . . . . . . . . . . Part Schematics Acquired . | . . . . . . . . . . . . . . . Parts Damaged . | . . . . . . . . . . . . . . . Bothacking | -11 -10 -10 -10 -9 -8 -7 -7 -7 -7 -6 -6 -6 -6 -6 ------------ Run | Scr Mat Min Exi Min Mat Fac Low Low Dat Pro Fac Low Zio Dee Used RIF Installer . | . . . . . . . . . . . . . . . Robots Hacked . | . . . . . . . . . . . . . . . Non-combat . | . . . . . . . . . . . . . . . Combat . | . . . . . . . . . . . . . . . Robot Hacks Applied . | . . . . . . . . . . . . . . . Relay Couplers Released . | . . . . . . . . . . . . . . . Fabnet Peak Effective % . | . . . . . . . . . . . . . . . Robots Rewired . | . . . . . . . . . . . . . . . Allies Hacked . | . . . . . . . . . . . . . . . Hacks Repelled . | . . . . . . . . . . . . . . . Allies | -11 -10 -10 -10 -9 -8 -7 -7 -7 -7 -6 -6 -6 -6 -6 -------- Run | Scr Mat Min Exi Min Mat Fac Low Low Dat Pro Fac Low Zio Dee Total Allies 1 | . . . . . . . . . . 1 . . . . Largest Group 1 | . . . . . . . . . . 1 1 . . . Highest-Rated Group 96 | . . . . . . . . . . 96 96 . . . Highest-Rated Ally 96 | . . . . . . . . . . 96 96 . . . Total Orders . | . . . . . . . . . . . . . . . Ally Attacks 16 | . . . . . . . . . . 2 14 . . . Total Damage 451 | . . . . . . . . . . 98 353 . . . Kills 2 | . . . . . . . . . . 1 1 . . . Allies Corrupted 1 | . . . . . . . . . . . 1 . . . Allies Melted . | . . . . . . . . . . . . . . . Intel | -11 -10 -10 -10 -9 -8 -7 -7 -7 -7 -6 -6 -6 -6 -6 ------- Run | Scr Mat Min Exi Min Mat Fac Low Low Dat Pro Fac Low Zio Dee Robot Analysis Total . | . . . . . . . . . . . . . . . Derelict Logs Recovered 7 | . . . . . . . . 3 . 1 . . 3 . Drone Launches . | . . . . . . . . . . . . . . . Drone Recoveries . | . . . . . . . . . . . . . . . Decoded 0b10 Intel 23 | . . . . . . . . . . . 23 . . . Items 23 | . . . . . . . . . . . 23 . . . Exploration | -11 -10 -10 -10 -9 -8 -7 -7 -7 -7 -6 -6 -6 -6 -6 ------------- Run | Scr Mat Min Exi Min Mat Fac Low Low Dat Pro Fac Low Zio Dee Turns Passed 9892 | 1 230 107 265 30 867 697 563 678 130 800 1418 260 3078 768 Spaces Moved 4650 | 1 160 79 220 26 312 381 451 500 82 342 479 109 1251 257 Core 11 | . . . . . 11 . . . . . . . . . Treads 2628 | . . . . . . . . 108 82 342 479 109 1251 257 Legs 961 | 1 160 79 220 26 301 148 . 26 . . . . . . Wheels 1050 | . . . . . . 233 451 366 . . . . . . Hover . | . . . . . . . . . . . . . . . Flight . | . . . . . . . . . . . . . . . Fastest Speed 100 | 120 120 120 120 120 120 100 100 100 160 160 160 240 240 160 Average Speed 178 | 120 120 120 120 120 133 119 100 117 160 226 213 240 240 238 Slowest Speed 400 | 120 120 120 120 120 400 190 100 240 160 240 240 240 240 240 Overloaded Moves . | . . . . . . . . . . . . . . . Propulsion Burnouts . | . . . . . . . . . . . . . . . Robots Hopped 2 | . . . . . . . . . . . . . 2 . Cave-ins Triggered 1 | . . . . . . . . . . . 1 . . . Exploration Rate (%) 38 | 2 36 21 61 16 35 12 61 65 69 56 11 18 86 34 Regions Visited 14 Branch Regions 10 Pre-discovered Areas 7 | . . . 1 . . . . 1 1 . . . 4 . Known Exits Taken 2 | . 1 . . . . . . . . . . . 1 . Unknown Exits Taken 12 | 1 . 1 1 1 1 1 1 1 1 1 1 1 . . Scrap Searched 18 | . . . . 1 . . 4 3 . 5 . . 5 . Spaces Dug 27 | . . . . . . 1 1 . . . 21 . 4 . Terrain Destroyed 123 | . . . . . 29 1 33 . . . 35 . 4 21 Melee 27 | . . . . . . 1 1 . . . 21 . 4 . Projectile 3 | . . . . . . . 1 . . . . . . 2 AOE 93 | . . . . . 29 . 31 . . . 14 . . 19 Terrain Rammed . | . . . . . . . . . . . . . . . Walls Destroyed . | . . . . . . . . . . . . . . . Machines Disabled . | . . . . . . . . . . . . . . . Actions | -11 -10 -10 -10 -9 -8 -7 -7 -7 -7 -6 -6 -6 -6 -6 --------- Run | Scr Mat Min Exi Min Mat Fac Low Low Dat Pro Fac Low Zio Dee Total 5778 | 2 182 83 221 25 676 527 539 544 81 363 809 108 1293 325 Wait 571 | . 1 . . . 268 8 62 10 . . 222 . . . Move 4633 | . 159 78 219 25 311 380 451 499 81 341 478 108 1246 257 Hop 2 | . . . . . . . . . . . . . 2 . Pick Up 63 | . 5 . 1 . 13 20 . . . 6 12 . 3 3 Fast Attach 51 | . 2 . . . 4 15 1 4 . 4 12 . 3 6 Attach 25 | . . . . . 9 3 2 3 . 1 2 . . 5 Detach 5 | . 1 . . . . . . . . . 3 . . 1 Swap 44 | . 1 . . . 4 9 7 . . 1 15 . 2 5 Drop 73 | 2 3 . 1 . 6 23 2 1 . 6 18 . 6 5 Fire 251 | . 10 5 . . 61 68 13 27 . 4 18 . 2 43 Melee 60 | . . . . . . 1 1 . . . 29 . 29 . Ram . | . . . . . . . . . . . . . . . Kick . | . . . . . . . . . . . . . . . Crush . | . . . . . . . . . . . . . . . Escape Stasis . | . . . . . . . . . . . . . . . Rewire . | . . . . . . . . . . . . . . . Trap . | . . . . . . . . . . . . . . . Miscellaneous . | . . . . . . . . . . . . . . . Route ------- -11/Scrapyard -10/Materials -10/Mines (discovered 2 exits: [*Mat] / *Exi) -10/Exiles (discovered 2 exits: [*Min x2]) -9/Mines -8/Materials -7/Factory -7/Lower Caves -7/Lower Caves (discovered 2 exits: *Fac / *Dat) -7/Data Miner -6/Proximity Caves -6/Factory -6/Lower Caves -6/Zion (discovered 2 exits: *Dee / [*Pro]) -6/Deep Caves History --------- Turn | Location | Event 2 | -11/Scrapyard | Discovered new exit (range 0) 2 | -11/Scrapyard | Entered Materials 20 | -10/Materials | Identified exit to Mines 232 | -10/Materials | Entered Mines 260 | -10/Mines | Discovered new exit (range 3) 312 | -10/Mines | Build established: Mutant 332 | -10/Mines | Deemed a non-threat by the Exiles lab entrance 332 | -10/Mines | Discovered new exit (range 5) 339 | -10/Mines | Entered Exiles 355 | -10/Exiles | Discovered new exit (range 15) 369 | -10/Exiles | Met 8R-AWN 390 | -10/Exiles | Met EX-HEX 421 | -10/Exiles | Met EX-BIN 435 | -10/Exiles | Aligned with FarCom system 437 | -10/Exiles | Given EX-Vault access code 464 | -10/Exiles | Opened EX-Vault 478 | -10/Exiles | Found Longsword +1 503 | -10/Exiles | Warned to stay clear of 0b10 Research branches 515 | -10/Exiles | Exiles lab attacked by MAIN.C 553 | -10/Exiles | Learned location of Zion (-6) 594 | -10/Exiles | Discovered new exit (range 10) 604 | -10/Exiles | Left Exiles lab with Longsword +1 604 | -10/Exiles | Entered Mines 618 | -9/Mines | Discovered new exit (range 14) 634 | -9/Mines | Entered Materials 634 | -8/Materials | Evolved 4 slots: Propulsion x2, Utility x2 981 | -8/Materials | Build established: Skirmisher 1327 | -8/Materials | Discovered new exit (range 12) 1417 | -8/Materials | Core integrity fell below 50% 1453 | -8/Materials | Lost 12 parts (1p4n1u6w) 1486 | -8/Materials | Core integrity fell below 20% 1501 | -8/Materials | Entered Factory 1501 | -7/Factory | Evolved 2 slots: Power x1, Utility x1 1656 | -7/Factory | Build established: Mutant 1915 | -7/Factory | Lost 3 parts (1p1u1w) 2172 | -7/Factory | Discovered new exit (range 14) 2198 | -7/Factory | Entered Lower Caves 2665 | -7/Lower Caves | Encountered a Warlord checkpoint 2690 | -7/Lower Caves | Discovered new exit (range 9) 2732 | -7/Lower Caves | Spotted B-75 Beast 2761 | -7/Lower Caves | Entered another Lower Caves area 2762 | -7/Lower Caves | Encountered a Warlord checkpoint 2781 | -7/Lower Caves | Discovered new exit (range 10) 2813 | -7/Lower Caves | Learned 4 Factory zone layouts 2836 | -7/Lower Caves | Learned location of 1 exit from Research 2836 | -7/Lower Caves | Learned Extension emergency access door positions 2836 | -7/Lower Caves | Learned Research security intel 2836 | -7/Lower Caves | Learned Research garrison access intel 2865 | -7/Lower Caves | Learned Factory terminal intel 2917 | -7/Lower Caves | Learned Factory emergency access door positions 2954 | -7/Lower Caves | Attracted the attention of an 0b10 checkpoint 3183 | -7/Lower Caves | System corruption reached 10% 3213 | -7/Lower Caves | Lost 4 parts (1p1n2u) 3294 | -7/Lower Caves | Lost 3 parts (1n2w) 3427 | -7/Lower Caves | Discovered new exit (range 7) 3439 | -7/Lower Caves | Entered Data Miner 3439 | -7/Data Miner | Discovered new exit (range 6) 3470 | -7/Data Miner | Met Data Miner 3502 | -7/Data Miner | Build established: Scavenger-Mutant 3502 | -7/Data Miner | Learned location of Section 7 (-2) 3502 | -7/Data Miner | Acquired the access code to Warlord's prototype stash 3529 | -7/Data Miner | Received God Mode back door access code from Data Miner 3569 | -7/Data Miner | Entered Proximity Caves 3745 | -6/Proximity Caves | Escorted by Enhanced Grunt 4091 | -6/Proximity Caves | Learned 4 Factory zone layouts 4268 | -6/Proximity Caves | Discovered new exit (range 16) 4369 | -6/Proximity Caves | Entered Factory 4369 | -6/Factory | Accompanied by 1 ally 4369 | -6/Factory | Evolved 2 slots: Utility x1, Weapon x1 4372 | -6/Factory | Loaded intel: 26 terminal locations 4734 | -6/Factory | Incoming investigation squad redirected 4785 | -6/Factory | Fabricated Biomechanical Wings (x1) 5278 | -6/Factory | Crushed by falling debris 5750 | -6/Factory | Discovered new exit (range 6) 5787 | -6/Factory | Entered Lower Caves 5788 | -6/Lower Caves | A Derelict revealed a hidden shortcut to a safe place 5807 | -6/Lower Caves | Build established: Scavenger-Tank 6047 | -6/Lower Caves | Entered Zion 6155 | -6/Zion | System corruption cleaned by Quarantine Array 6189 | -6/Zion | Learned Factory garrison access intel 6340 | -6/Zion | Discovered new exit (range 13) 6463 | -6/Zion | Found CR-A16's Pointy Stick 6599 | -6/Zion | Learned location of Quarantine (-2) 6966 | -6/Zion | Rebuked by Imprinter 7047 | -6/Zion | Learned location of Warlord (-5) 7308 | -6/Zion | Identified exit to Deep Caves 7425 | -6/Zion | Given A8's code to call for help 7531 | -6/Zion | Learned Factory terminal intel 7543 | -6/Zion | Learned Factory emergency access door positions 9007 | -6/Zion | Build established: Scavenger-Mutant 9125 | -6/Zion | Entered Deep Caves 9387 | -6/Deep Caves | Attacked by Z-Imprinter 9445 | -6/Deep Caves | Destroyed Z-Imprinter 9474 | -6/Deep Caves | Lost 7 parts (1p2n3u1w) 9479 | -6/Deep Caves | Found Prototype Protection 9479 | -6/Deep Caves | Identified Zio. Weapon Casing 9629 | -6/Deep Caves | Z-Facility disabled 9876 | -6/Deep Caves | Core integrity fell below 50% 9887 | -6/Deep Caves | Core integrity fell below 20% 9893 | -6/Deep Caves | Destroyed by 7F-LC2(z) with Zionite Laser-S Last Messages --------------- 09878_ Power failure, Mic. Nuclear Core shutdown. 09878_ Overheating: Mic. Nuclear Core damaged (-18). 09879_ Overheating: Zio. Light DM Reactor damaged (-31). 09879_ Overheating: Hvy. Laser damaged (-8). 09879_ Overheating: Mic. Nuclear Core damaged (-14). 09880_ Mic. Nuclear Core destroyed. 09881_ Imp. Medium Treads destroyed. 09882_ 19-MWV(z) knocked back. 09883_ Zio. Light DM Reactor broken. 09883_ Overheating: Short circuit. 09883_ Hvy. Laser destroyed. 09885_ Magnetic Acceleration Cannon broken. 09885_ Overheating: Short circuit. 09887_ Broken Zio. Light DM Reactor destroyed. 09887_ Destroyed Broken Zio. Light DM Reactor. 09887_ 19-MWV(z) destroyed. 09888_ Overheating: System interference. 09888_ Hvy. Rocket Launcher temporarily disabled. 09889_ Hvy. Rocket Launcher destroyed. 09893_ Dropped Lrg. Storage Unit. Map ----- +----------------------------------------------------+ | | | | | | | | | | | | | | | | | | | | | | | | | | | | | | | | | | | | | | | | | | | ????????????????????????####?????????????????????? | | ???????????????????????# ! ###??###############??? | | ??????????????????????## #### #### | | ??????????????????????# *] # ## | | ????????????????##????# [@![ ## | | ??????????????### #?##]%z | | ??????????????# # %z | | ????????? !z | | ????????? | | ????????? | | ?????????? | | ?????????? """"" """""" | | ??????????? """""""""""""" | | ??????????? """""""""""""" | | ??????????? """""""""""""" | | ???????????? """???""""" | | ???????????? """???"""""""" | | ????????????? "????""""""""" | | ????????????? "????""""""""" | | ??????????????? "???"""""""""" | | ????????????????? "???""""" " " | | ???????????????????? ????""""""% | | ?????????????????????? ??????""""" / | | ?????????????????????????????????"""""" | | ?????????????????????????????????"""""" | | ?????????????????????????????????"""""""" | | ?????????????????????????????????""""""""""! | | ?????????????????????????????????""" = | | ?????????????????????????????????""" """ | +----------------------------------------------------+ Best States ------------- Heat Dissipation 92 Energy Generation 46 Energy Capacity 340 Matter Stores 300 Matter Capacity 450 Sight Range 16 Robot Scan Range 14 Terrain Scan Density 10 Cloak Strength 3 Power Amplification 30 Armor Coverage 800 Resistance: KI 30 Resistance: EM 15 Propulsion Shielding 33 Weapon Shielding 100 Weapon Cycling 15 Evasion (%) 55 Melee Accuracy 6 Recoil Reduction 4 Particle Charging 15 Offensive Hacking 11 Item Schematics ----------------- Combat Drone Bay | -7/Data Miner | Free Lgt. Regenerative Plating | -7/Data Miner | Free Biomechanical Wings | -7/Data Miner | Free Thermal Defense Suite | -7/Data Miner | Free Hvy. Treads | -7/Data Miner | Free Com. Ion Cannon | -7/Data Miner | Free Imp. Coolant Injector | -7/Data Miner | Free Disruptor Cannon | -7/Data Miner | Free EM Disruption Field | -7/Data Miner | Free Adv. Drone Bay | -7/Data Miner | Free Adv. Particle Charger | -7/Data Miner | Free Robot Schematics ------------------ M-14 Sweeper | -7/Data Miner | Free M-22 Extractor | -7/Data Miner | Free A-15 Conveyor | -7/Data Miner | Free L-41 Fighter | -7/Data Miner | Free G-50 Soldier | -7/Data Miner | Free Fabricated ------------ Biomechanical Wings | x1 | -6/Factory Alien Tech Used ----------------- None Achievements -------------- None Challenges ------------ None Game ------ Seed LayeredPulseFlamer Manual? 0 Play Time 01:13:52 Cumulative 336.5 hours Start 2022.02.12 @ 22:48:22 End 2022.03.11 @ 10:51:37 Sessions 11 Manual Loads 0 Difficulty Rogue Special Mode None Game No. 473 Rogue 472 Adventurer 0 Explorer 1 Win Type - Total 2 Types 2/0/0/0/0/0/0/0/0 Lore% 68 Gallery% 79 Achievement% 61 Wizard Run 0 Options --------- ASCII 1 Keyboard 1 Movement Vi Keybinds 0 Fullscreen 2 Font 12/Smallcaps Map View 76x56 Tactical HUD 1 Map Filters NONE Filters LOW_CONTRAST(13,24,33) Steam 0 RUN: 4a07b2e3-33b8-4ea4-a768-7a71730c0da1